fUST/lending_fUST_20250429
["ID","MTS","AMOUNT","RATE_DAILY","PERIOD"]
[359291153,1745895048030,-786.22,0.00019452,2]
[359291154,1745895048039,-203.03499763,0.00019452,2]
[359291155,1745895048049,-164.99176927,0.00019452,2]
[359291156,1745895048059,-174.9933725,0.00019452,2]
[359291157,1745895048069,-499.71659445,0.00019473,2]
[359291158,1745895048083,-500.0,0.00019473,2]
[359291159,1745895048092,-456.86591311,0.00019473,2]
[359291160,1745895048102,-500.0,0.00019473,2]
[359291161,1745895048112,-500.0,0.00019473,2]
[359291162,1745895048122,-500.0,0.00019473,2]
[359291163,1745895048132,-500.0,0.00019473,2]
[359291164,1745895048142,-500.0,0.00019473,2]
[359291165,1745895048153,-500.0,0.00019473,2]
[359291166,1745895048163,-500.0,0.00019473,2]
[359291167,1745895048172,-1405.53054845,0.00019489,2]
[359291168,1745895048181,-313.2348916,0.000195,2]
[359291169,1745895048193,-465.851825,0.000195,2]
[359291170,1745895048203,-153.0,0.000195,2]
[359291171,1745895048213,-361.7792701,0.000195,2]
[359291172,1745895048223,-567.0839203,0.000195,2]
[359291173,1745895048232,-250.1465609,0.000195,2]
[359291174,1745895048242,-157.3664837,0.000195,2]
[359291175,1745895048251,-174.9933725,0.000195,2]
[359291176,1745895048260,-157.3664837,0.000195,2]
[359291177,1745895048269,-567.0839203,0.000195,2]
[359291178,1745895048279,-361.7792701,0.000195,2]
[359291179,1745895048289,-2801.98473734,0.00019529,2]
[359291180,1745895048298,-52677.10243364,0.00019529,2]
[359291181,1745895048308,-151.0,0.00019529,2]
[359291182,1745895048317,-151.0,0.000196,2]
[359291183,1745895048327,-4295.31145128,0.00019676,2]
[359291184,1745895048337,-1405.53054845,0.00019695,2]
[359291185,1745895048346,-151.0,0.000197,2]
[359291186,1745895048356,-369.3415282,0.000197,2]
[359291187,1745895048366,-400.0,0.00019726,2]
[359291188,1745895048375,-300.0,0.00019726,2]
[359291189,1745895048384,-500.0,0.00019726,2]
[359291190,1745895048394,-400.0,0.00019726,2]
[359291191,1745895048404,-400.0,0.00019726,2]
[359291192,1745895048414,-487.53,0.00019726,2]
[359291193,1745895048424,-314.47106494,0.00019726,2]
[359291194,1745895048433,-400.0,0.00019726,2]
[359291195,1745895048445,-400.0,0.00019726,2]
[359291196,1745895048455,-400.0,0.00019726,2]
[359291197,1745895048464,-400.0,0.00019726,2]
[359291198,1745895048475,-547.42424004,0.00019726,2]
[359291199,1745895048484,-400.0,0.00019726,2]
[359291200,1745895048494,-400.0,0.00019726,2]
[359291201,1745895048504,-400.0,0.00019726,2]
[359291202,1745895048513,-436.05,0.00019726,2]
[359291203,1745895048523,-488.77,0.00019726,2]
[359291204,1745895048533,-400.0,0.00019726,2]
[359291205,1745895048543,-528.94620242,0.00019726,2]
[359291206,1745895048553,-509.61,0.00019726,2]
[359291207,1745895048562,-400.0,0.00019726,2]
[359291208,1745895048572,-400.0,0.00019726,2]
[359291209,1745895048581,-400.0,0.00019726,2]
[359291210,1745895048590,-505.80640486,0.00019726,2]
[359291211,1745895048599,-305.87361398,0.00019726,2]
[359291212,1745895048608,-307.84712459,0.00019726,2]
[359291213,1745895048618,-400.0,0.00019726,2]
[359291214,1745895048628,-310.34359085,0.00019726,2]
[359291215,1745895048638,-400.0,0.00019726,2]
[359291216,1745895048647,-400.0,0.00019726,2]
[359291217,1745895048657,-400.0,0.00019726,2]
[359291218,1745895048665,-400.0,0.00019726,2]
[359291219,1745895048675,-400.0,0.00019726,2]
[359291220,1745895048685,-461.52,0.00019726,2]
[359291221,1745895048696,-400.0,0.00019726,2]
[359291222,1745895048705,-400.0,0.00019726,2]
[359291223,1745895048715,-400.0,0.00019726,2]
[359291224,1745895048724,-400.0,0.00019726,2]
[359291225,1745895048734,-664.65,0.00019726,2]
[359291226,1745895048744,-400.0,0.00019726,2]
[359291227,1745895048755,-400.0,0.00019726,2]
[359291228,1745895048765,-507.64418997,0.00019726,2]
[359291229,1745895048778,-421.91,0.00019726,2]
[359291230,1745895048788,-400.0,0.00019726,2]
[359291231,1745895048797,-400.0,0.00019726,2]
[359291232,1745895048807,-549.52,0.00019726,2]
[359291233,1745895048816,-400.0,0.00019726,2]
[359291234,1745895048826,-268.0552205,0.00019726,2]
[359291235,1745895048836,-400.0,0.00019726,2]
[359291236,1745895048845,-309.92671112,0.00019726,2]
[359291237,1745895048855,-400.0,0.00019726,2]
[359291238,1745895048865,-400.0,0.00019726,2]
[359291239,1745895048875,-400.0,0.00019726,2]
[359291240,1745895048885,-400.0,0.00019726,2]
[359291241,1745895048896,-400.0,0.00019726,2]
[359291242,1745895048906,-400.0,0.00019726,2]
[359291243,1745895048917,-400.0,0.00019726,2]
[359291244,1745895048927,-400.0,0.00019726,2]
[359291245,1745895048937,-400.0,0.00019726,2]
[359291246,1745895048946,-680.91,0.00019726,2]
[359291247,1745895048957,-400.0,0.00019726,2]
[359291248,1745895048967,-400.0,0.00019726,2]
[359291249,1745895048976,-470.27,0.00019726,2]
[359291250,1745895048987,-869.9,0.00019726,2]
[359291251,1745895048997,-400.0,0.00019726,2]
[359291252,1745895049007,-400.0,0.00019726,2]
[359291253,1745895049018,-752.0,0.00019726,2]
[359291254,1745895049029,-953.01,0.00019726,2]
[359291255,1745895049039,-400.0,0.00019726,2]
[359291256,1745895049049,-729.63,0.00019726,2]
[359291257,1745895049059,-681.93,0.00019726,2]
[359291258,1745895049069,-459.23,0.00019726,2]
[359291259,1745895049079,-400.0,0.00019726,2]
[359291260,1745895049088,-400.0,0.00019726,2]
[359291261,1745895049098,-400.0,0.00019726,2]
[359291262,1745895049108,-400.0,0.00019726,2]
[359291263,1745895049118,-400.0,0.00019726,2]
[359291264,1745895049128,-400.0,0.00019726,2]
[359291265,1745895049138,-435.14,0.00019726,2]
[359291266,1745895049148,-400.0,0.00019726,2]
[359291267,1745895049158,-400.0,0.00019726,2]
[359291268,1745895049167,-788.65,0.00019726,2]
[359291269,1745895049177,-400.0,0.00019726,2]
[359291270,1745895049187,-400.0,0.00019726,2]
[359291271,1745895049200,-400.0,0.00019726,2]
[359291272,1745895049210,-445.55,0.00019726,2]
[359291273,1745895049220,-431.43,0.00019726,2]
[359291274,1745895049229,-400.0,0.00019726,2]
[359291275,1745895049239,-400.0,0.00019726,2]
[359291276,1745895049249,-400.0,0.00019726,2]
[359291277,1745895049259,-1347.66,0.00019726,2]
[359291278,1745895049269,-1253.61,0.00019726,2]
[359291279,1745895049278,-400.0,0.00019726,2]
[359291280,1745895049289,-400.0,0.00019726,2]
[359291281,1745895049299,-400.0,0.00019726,2]
[359291282,1745895049310,-482.37,0.00019726,2]
[359291283,1745895049319,-907.73,0.00019726,2]
[359291284,1745895049329,-400.0,0.00019726,2]
[359291285,1745895049339,-544.05,0.00019726,2]
[359291286,1745895049349,-321.66783034,0.00019726,2]
[359291287,1745895049359,-500.0,0.00019726,2]
[359291288,1745895049368,-400.0,0.00019726,2]
[359291289,1745895049378,-400.0,0.00019726,2]
[359291290,1745895049388,-400.0,0.00019726,2]
[359291291,1745895049397,-722.03,0.00019726,2]
[359291292,1745895049407,-400.0,0.00019726,2]
[359291293,1745895049416,-205.4041768,0.00019726,2]
[359291294,1745895049426,-400.0,0.00019726,2]
[359291295,1745895049435,-400.0,0.00019726,2]
[359291296,1745895049448,-400.0,0.00019726,2]
[359291297,1745895049457,-513.20943624,0.00019726,2]
[359291298,1745895049467,-406.96155674,0.00019726,2]
[359291299,1745895049477,-400.0,0.00019726,2]
[359291300,1745895049486,-400.0,0.00019726,2]
[359291301,1745895049496,-1165.36,0.00019726,2]
[359291302,1745895049506,-464.31612564,0.00019726,2]
[359291303,1745895049515,-400.0,0.00019726,2]
[359291304,1745895049526,-306.45690693,0.00019726,2]
[359291305,1745895049535,-400.0,0.00019726,2]
[359291306,1745895049546,-1527.24,0.00019726,2]
[359291307,1745895049556,-400.0,0.00019726,2]
[359291308,1745895049566,-546.75,0.00019726,2]
[359291309,1745895049576,-1024.81,0.00019726,2]
[359291310,1745895049586,-725.57,0.00019726,2]
[359291311,1745895049596,-408.40240896,0.00019726,2]
[359291312,1745895049606,-400.0,0.00019726,2]
[359291313,1745895049615,-532.63,0.00019726,2]
[359291314,1745895049625,-400.0,0.00019726,2]
[359291315,1745895049634,-2190.4,0.00019726,2]
[359291316,1745895049644,-773.49,0.00019726,2]
[359291317,1745895049653,-1123.88,0.00019726,2]
[359291318,1745895049663,-1018.81,0.00019726,2]
[359291319,1745895049673,-446.16,0.00019726,2]
[359291320,1745895049682,-400.0,0.00019726,2]
[359291321,1745895049693,-829.58,0.00019726,2]
[359291322,1745895049703,-939.54,0.00019726,2]
[359291323,1745895049712,-1040.02,0.00019726,2]
[359291324,1745895049722,-400.0,0.00019726,2]
[359291325,1745895049732,-407.09624542,0.00019726,2]
[359291326,1745895049784,-400.0,0.00019726,2]
[359291327,1745895049794,-204.01370804,0.00019726,2]
[359291328,1745895049805,-400.0,0.00019726,2]
[359291329,1745895049814,-523.99,0.00019726,2]
[359291330,1745895049823,-400.0,0.00019726,2]
[359291331,1745895049833,-886.27,0.00019726,2]
[359291332,1745895049844,-1563.19,0.00019726,2]
[359291333,1745895049853,-8641.78,0.00019726,2]
[359291334,1745895049863,-400.0,0.00019726,2]
[359291335,1745895049873,-474.03,0.00019726,2]
[359291336,1745895049882,-7203.64,0.00019726,2]
[359291337,1745895049892,-1391.33,0.00019726,2]
[359291338,1745895049901,-400.0,0.00019726,2]
[359291339,1745895049911,-400.0,0.00019726,2]
[359291340,1745895049920,-367.66874566,0.00019726,2]
[359291341,1745895049930,-426.98,0.00019726,2]
[359291342,1745895049940,-2841.42,0.00019726,2]
[359291343,1745895049949,-400.0,0.00019726,2]
[359291344,1745895049959,-400.0,0.00019726,2]
[359291345,1745895049968,-400.0,0.00019726,2]
[359291346,1745895049979,-400.0,0.00019726,2]
[359291347,1745895049989,-400.0,0.00019726,2]
[359291348,1745895049998,-400.0,0.00019726,2]
[359291349,1745895050009,-400.0,0.00019726,2]
[359291350,1745895050018,-400.0,0.00019726,2]
[359291351,1745895050028,-400.0,0.00019726,2]
[359291352,1745895050039,-400.0,0.00019726,2]
[359291353,1745895050048,-492.39,0.00019726,2]
[359291354,1745895050058,-529.61,0.00019726,2]
[359291355,1745895050067,-400.0,0.00019726,2]
[359291356,1745895050076,-400.0,0.00019726,2]
[359291357,1745895050086,-862.45,0.00019726,2]
[359291358,1745895050096,-1502.82,0.00019726,2]
[359291359,1745895050106,-169.06087822,0.00019726,2]
[359291360,1745895050115,-688.34,0.00019726,2]
[359291361,1745895050125,-683.34,0.00019726,2]
[359291362,1745895050134,-400.0,0.00019726,2]
[359291363,1745895050145,-922.98,0.00019726,2]
[359291364,1745895050154,-400.0,0.00019726,2]
[359291365,1745895050163,-460.66,0.00019726,2]
[359291366,1745895050174,-1731.73,0.00019726,2]
[359291367,1745895050183,-400.0,0.00019726,2]
[359291368,1745895050193,-400.0,0.00019726,2]
[359291369,1745895050203,-688.59,0.00019726,2]
[359291370,1745895050211,-896.35,0.00019726,2]
[359291371,1745895050221,-1244.71,0.00019726,2]
[359291372,1745895050231,-400.0,0.00019726,2]
[359291373,1745895050241,-1243.65,0.00019726,2]
[359291374,1745895050250,-400.0,0.00019726,2]
[359291375,1745895050259,-400.0,0.00019726,2]
[359291376,1745895050268,-400.0,0.00019726,2]
[359291377,1745895050277,-400.0,0.00019726,2]
[359291378,1745895050286,-2584.83,0.00019726,2]
[359291379,1745895050295,-400.0,0.00019726,2]
[359291380,1745895050304,-678.98,0.00019726,2]
[359291381,1745895050313,-439.82,0.00019726,2]
[359291382,1745895050322,-400.0,0.00019726,2]
[359291383,1745895050331,-955.03,0.00019726,2]
[359291384,1745895050341,-400.0,0.00019726,2]
[359291385,1745895050350,-766.32,0.00019726,2]
[359291386,1745895050359,-6668.64,0.00019726,2]
[359291387,1745895050376,-442.16,0.00019726,2]
[359291388,1745895050385,-551.05,0.00019726,2]
[359291389,1745895050394,-400.0,0.00019726,2]
[359291390,1745895050403,-400.0,0.00019726,2]
[359291391,1745895050413,-400.0,0.00019726,2]
[359291392,1745895050422,-400.0,0.00019726,2]
[359291393,1745895050432,-400.0,0.00019726,2]
[359291394,1745895050443,-537.08,0.00019726,2]
[359291395,1745895050451,-3355.31,0.00019726,2]
[359291396,1745895050461,-2006.54,0.00019726,2]
[359291397,1745895050471,-3239.15,0.00019726,2]
[359291398,1745895050481,-987.36,0.00019726,2]
[359291399,1745895050490,-400.0,0.00019726,2]
[359291400,1745895050500,-400.0,0.00019726,2]
[359291401,1745895050509,-698.16,0.00019726,2]
[359291402,1745895050519,-400.0,0.00019726,2]
[359291403,1745895050530,-400.0,0.00019726,2]
[359291404,1745895050540,-400.0,0.00019726,2]
[359291405,1745895050550,-1169.74,0.00019726,2]
[359291406,1745895050559,-553.03,0.00019726,2]
[359291407,1745895050570,-579.4243163,0.00019726,2]
[359291408,1745895050579,-525.45,0.00019726,2]
[359291409,1745895050589,-463.88,0.00019726,2]
[359291410,1745895050598,-7395.98,0.00019726,2]
[359291411,1745895050608,-400.0,0.00019726,2]
[359291412,1745895050617,-452.14,0.00019726,2]
[359291413,1745895050626,-432.94,0.00019726,2]
[359291414,1745895050636,-292.35733197,0.00019726,2]
[359291415,1745895050645,-1427.37,0.00019726,2]
[359291416,1745895050655,-400.0,0.00019726,2]
[359291417,1745895050664,-400.0,0.00019726,2]
[359291418,1745895050674,-400.0,0.00019726,2]
[359291419,1745895050682,-749.28,0.00019726,2]
[359291420,1745895050692,-860.74,0.00019726,2]
[359291421,1745895050702,-4743.97,0.00019726,2]
[359291422,1745895050711,-400.0,0.00019726,2]
[359291423,1745895050721,-526.1,0.00019726,2]
[359291424,1745895050730,-400.0,0.00019726,2]
[359291425,1745895050739,-400.0,0.00019726,2]
[359291426,1745895050749,-400.0,0.00019726,2]
[359291427,1745895050759,-400.0,0.00019726,2]
[359291428,1745895050768,-400.0,0.00019726,2]
[359291429,1745895050781,-400.0,0.00019726,2]
[359291430,1745895050791,-872.3,0.00019726,2]
[359291431,1745895050800,-400.0,0.00019726,2]
[359291432,1745895050809,-3365.85,0.00019726,2]
[359291433,1745895050819,-1000.95,0.00019726,2]
[359291434,1745895050829,-400.0,0.00019726,2]
[359291435,1745895050839,-400.0,0.00019726,2]
[359291436,1745895050849,-487.83,0.00019726,2]
[359291437,1745895050858,-400.0,0.00019726,2]
[359291438,1745895050868,-1244.56,0.00019726,2]
[359291439,1745895050877,-469.84,0.00019726,2]
[359291440,1745895050887,-875.34,0.00019726,2]
[359291441,1745895050897,-640.42,0.00019726,2]
[359291442,1745895050906,-1261.65,0.00019726,2]
[359291443,1745895050915,-3239.48,0.00019726,2]
[359291444,1745895050925,-1109.21,0.00019726,2]
[359291445,1745895050934,-501.95154324,0.00019726,2]
[359291446,1745895050945,-411.22,0.00019726,2]
[359291447,1745895050955,-554.53,0.00019726,2]
[359291448,1745895050964,-400.0,0.00019726,2]
[359291449,1745895050973,-1267.34,0.00019726,2]
[359291450,1745895050983,-1153.01,0.00019726,2]
[359291451,1745895050992,-400.0,0.00019726,2]
[359291452,1745895051002,-849.2,0.00019726,2]
[359291453,1745895051011,-400.0,0.00019726,2]
[359291454,1745895051021,-400.0,0.00019726,2]
[359291455,1745895051032,-3427.99,0.00019726,2]
[359291456,1745895051041,-4464.15,0.00019726,2]
[359291457,1745895051050,-1117.04,0.00019726,2]
[359291458,1745895051060,-400.0,0.00019726,2]
[359291459,1745895051069,-400.0,0.00019726,2]
[359291460,1745895051078,-1318.47,0.00019726,2]
[359291461,1745895051088,-400.0,0.00019726,2]
[359291462,1745895051098,-400.0,0.00019726,2]
[359291463,1745895051107,-208.2082258,0.00019726,2]
[359291464,1745895051117,-401.75055902,0.00019726,2]
[359291465,1745895051126,-3820.83,0.00019726,2]
[359291466,1745895051136,-400.0,0.00019726,2]
[359291467,1745895051146,-1545.17,0.00019726,2]
[359291468,1745895051156,-860.06,0.00019726,2]
[359291469,1745895051166,-400.0,0.00019726,2]
[359291470,1745895051175,-2803.25,0.00019726,2]
[359291471,1745895051184,-400.0,0.00019726,2]
[359291472,1745895051197,-400.0,0.00019726,2]
[359291473,1745895051206,-400.0,0.00019726,2]
[359291474,1745895051215,-400.0,0.00019726,2]
[359291475,1745895051225,-400.0,0.00019726,2]
[359291476,1745895051234,-518.37,0.00019726,2]
[359291477,1745895051244,-579.08,0.00019726,2]
[359291478,1745895051254,-302.90001569,0.00019726,2]
[359291479,1745895051264,-505.61,0.00019726,2]
[359291480,1745895051273,-400.0,0.00019726,2]
[359291481,1745895051284,-724.34,0.00019726,2]
[359291482,1745895051294,-786.22,0.00019726,2]
[359291483,1745895051303,-500.0,0.00019773,2]
[359291484,1745895051314,-507.61226044,0.00019773,2]
[359291485,1745895051323,-500.98057807,0.00019773,2]
[359291486,1745895051335,-500.0,0.00019773,2]
[359291487,1745895051344,-500.0,0.00019773,2]
[359291488,1745895051354,-500.0,0.00019773,2]
[359291489,1745895051363,-500.0,0.00019773,2]
[359291490,1745895051372,-500.0,0.00019773,2]
[359291491,1745895051381,-502.80077461,0.00019773,2]
[359291492,1745895051391,-500.0,0.00019773,2]
[359291493,1745895051400,-501.25114102,0.00019773,2]
[359291494,1745895051410,-500.0,0.00019773,2]
[359291495,1745895051419,-502.88554504,0.00019773,2]
[359291496,1745895051429,-500.35766994,0.00019773,2]
[359291497,1745895051440,-501.97632587,0.00019773,2]
[359291498,1745895051450,-501.29754454,0.00019773,2]
[359291499,1745895051459,-500.0,0.00019773,2]
[359291500,1745895051468,-500.0,0.00019773,2]
[359291501,1745895051478,-151.0,0.000198,2]
[359291502,1745895051487,-160.0,0.000198,3]
[359291503,1745895051496,-151.0,0.000199,2]
[359291504,1745895051506,-151.0,0.000199,2]
[359291505,1745895051515,-1405.53054845,0.000199,2]
[359291506,1745895051524,-151.0,0.000199,2]
[359291507,1745895051533,-500.0,0.00019973,2]
[359291508,1745895051543,-500.96925084,0.00019973,2]
[359291509,1745895051552,-556.67450122,0.00019973,2]
[359291510,1745895051562,-500.0,0.00019973,2]
[359291511,1745895051571,-500.0,0.00019973,2]
[359291512,1745895051581,-500.52511725,0.00019973,2]
[359291513,1745895051591,-500.0,0.00019973,2]
[359291514,1745895051600,-524.40096931,0.00019973,2]
[359291515,1745895051609,-500.0,0.00019973,2]
[359291516,1745895051619,-500.78456312,0.00019973,2]
[359291517,1745895051628,-298.34090076,0.00019973,2]
[359291518,1745895051637,-508.25629995,0.00019973,2]
[359291519,1745895051647,-500.0,0.00019973,2]
[359291520,1745895051656,-500.0,0.00019973,2]
[359291521,1745895051667,-501.4368094,0.00019973,2]
[359291522,1745895051677,-500.0,0.00019973,2]
[359291523,1745895051686,-500.0,0.00019973,2]
[359291524,1745895051699,-505.86740845,0.00019973,2]
[359291525,1745895051709,-151.78211558,0.00019973,2]
[359291526,1745895051719,-177.413735,0.00019988,2]
[359291527,1745895051729,-480.0,0.00019999,2]
[359291528,1745895051741,-163425.63195674,0.0002,2]
[359291529,1745895051751,-4287.0,0.0002,2]
[359291530,1745895051767,-253624.31981645,0.0002,2]
[359291531,1745895051778,-400.0,0.0002,2]
[359291532,1745895051788,-400.0,0.0002,2]
[359291533,1745895051800,-400.0,0.0002,2]
[359291534,1745895051810,-487.53,0.0002,2]
[359291535,1745895051820,-400.0,0.0002,2]
[359291536,1745895051830,-400.0,0.0002,2]
[359291537,1745895051840,-400.0,0.0002,2]
[359291538,1745895051850,-400.0,0.0002,2]
[359291539,1745895051862,-400.0,0.0002,2]
[359291540,1745895051872,-400.0,0.0002,2]
[359291541,1745895051882,-400.0,0.0002,2]
[359291542,1745895051892,-436.05,0.0002,2]
[359291543,1745895051902,-488.77,0.0002,2]
[359291544,1745895051911,-400.0,0.0002,2]
[359291545,1745895051921,-509.61,0.0002,2]
[359291546,1745895051931,-400.0,0.0002,2]
[359291547,1745895051949,-400.0,0.0002,2]
[359291548,1745895051958,-400.0,0.0002,2]
[359291549,1745895051968,-400.0,0.0002,2]
[359291550,1745895051978,-400.0,0.0002,2]
[359291551,1745895051988,-400.0,0.0002,2]
[359291552,1745895051997,-400.0,0.0002,2]
[359291553,1745895052009,-400.0,0.0002,2]
[359291554,1745895052019,-204.82403966,0.0002,2]
[359291555,1745895052030,-461.52,0.0002,2]
[359291556,1745895052040,-400.0,0.0002,2]
[359291557,1745895052050,-296.85249077,0.0002,2]
[359291558,1745895052059,-400.0,0.0002,2]
[359291559,1745895052069,-400.0,0.0002,2]
[359291560,1745895052079,-664.65,0.0002,2]
[359291561,1745895052089,-400.0,0.0002,2]
[359291562,1745895052100,-400.0,0.0002,2]
[359291563,1745895052110,-421.91,0.0002,2]
[359291564,1745895052120,-400.0,0.0002,2]
[359291565,1745895052130,-183.32601968,0.0002,2]
[359291566,1745895052140,-549.52,0.0002,2]
[359291567,1745895052149,-400.0,0.0002,2]
[359291568,1745895052160,-400.0,0.0002,2]
[359291569,1745895052170,-400.0,0.0002,2]
[359291570,1745895052180,-400.0,0.0002,2]
[359291571,1745895052194,-400.0,0.0002,2]
[359291572,1745895052204,-400.0,0.0002,2]
[359291573,1745895052214,-400.0,0.0002,2]
[359291574,1745895052223,-400.0,0.0002,2]
[359291575,1745895052234,-400.0,0.0002,2]
[359291576,1745895052244,-400.0,0.0002,2]
[359291577,1745895052253,-400.0,0.0002,2]
[359291578,1745895052264,-680.91,0.0002,2]
[359291579,1745895052273,-400.0,0.0002,2]
[359291580,1745895052283,-400.0,0.0002,2]
[359291581,1745895052293,-470.27,0.0002,2]
[359291582,1745895052303,-869.9,0.0002,2]
[359291583,1745895052312,-400.0,0.0002,2]
[359291584,1745895052322,-400.0,0.0002,2]
[359291585,1745895052332,-752.0,0.0002,2]
[359291586,1745895052342,-953.01,0.0002,2]
[359291587,1745895052351,-244.91377215,0.0002,2]
[359291588,1745895052361,-729.63,0.0002,2]
[359291589,1745895052371,-681.93,0.0002,2]
[359291590,1745895052380,-459.23,0.0002,2]
[359291591,1745895052390,-400.0,0.0002,2]
[359291592,1745895052399,-400.0,0.0002,2]
[359291593,1745895052409,-400.0,0.0002,2]
[359291594,1745895052422,-365.31477929,0.0002,2]
[359291595,1745895052432,-400.0,0.0002,2]
[359291596,1745895052445,-400.0,0.0002,2]
[359291597,1745895052455,-435.14,0.0002,2]
[359291598,1745895052464,-400.0,0.0002,2]
[359291599,1745895052474,-400.0,0.0002,2]
[359291600,1745895052483,-788.65,0.0002,2]
[359291601,1745895052493,-400.0,0.0002,2]
[359291602,1745895052503,-400.0,0.0002,2]
[359291603,1745895052512,-400.0,0.0002,2]
[359291604,1745895052522,-445.55,0.0002,2]
[359291605,1745895052531,-431.43,0.0002,2]
[359291606,1745895052541,-400.0,0.0002,2]
[359291607,1745895052551,-400.0,0.0002,2]
[359291608,1745895052561,-400.0,0.0002,2]
[359291609,1745895052570,-1347.66,0.0002,2]
[359291610,1745895052581,-1253.61,0.0002,2]
[359291611,1745895052591,-506.27329818,0.0002,2]
[359291612,1745895052601,-400.0,0.0002,2]
[359291613,1745895052610,-400.0,0.0002,2]
[359291614,1745895052620,-482.37,0.0002,2]
[359291615,1745895052629,-907.73,0.0002,2]
[359291616,1745895052639,-400.0,0.0002,2]
[359291617,1745895052649,-544.05,0.0002,2]
[359291618,1745895052658,-500.0,0.0002,2]
[359291619,1745895052669,-400.0,0.0002,2]
[359291620,1745895052679,-400.0,0.0002,2]
[359291621,1745895052692,-400.0,0.0002,2]
[359291622,1745895052702,-722.03,0.0002,2]
[359291623,1745895052712,-312.80277995,0.0002,2]
[359291624,1745895052721,-400.0,0.0002,2]
[359291625,1745895052731,-400.0,0.0002,2]
[359291626,1745895052741,-400.0,0.0002,2]
[359291627,1745895052752,-400.0,0.0002,2]
[359291628,1745895052763,-400.0,0.0002,2]
[359291629,1745895052774,-1165.36,0.0002,2]
[359291630,1745895052786,-400.0,0.0002,2]
[359291631,1745895052796,-295.88139743,0.0002,2]
[359291632,1745895052806,-1527.24,0.0002,2]
[359291633,1745895052816,-400.0,0.0002,2]
[359291634,1745895052827,-546.75,0.0002,2]
[359291635,1745895052837,-1024.81,0.0002,2]
[359291636,1745895052847,-725.57,0.0002,2]
[359291637,1745895052859,-400.0,0.0002,2]
[359291638,1745895052870,-532.63,0.0002,2]
[359291639,1745895052880,-400.0,0.0002,2]
[359291640,1745895052890,-2190.4,0.0002,2]
[359291641,1745895052900,-773.49,0.0002,2]
[359291642,1745895052910,-1123.88,0.0002,2]
[359291643,1745895052920,-1018.81,0.0002,2]
[359291644,1745895052930,-446.16,0.0002,2]
[359291645,1745895052943,-400.0,0.0002,2]
[359291646,1745895052953,-829.58,0.0002,2]
[359291647,1745895052963,-939.54,0.0002,2]
[359291648,1745895052973,-1040.02,0.0002,2]
[359291649,1745895052983,-400.0,0.0002,2]
[359291650,1745895052993,-400.0,0.0002,2]
[359291651,1745895053003,-400.0,0.0002,2]
[359291652,1745895053013,-523.99,0.0002,2]